fUSD/lending_fUSD_20240122
["ID","MTS","AMOUNT","RATE_DAILY","PERIOD"]
[312486696,1705923045690,-500.0,0.00036199,2]
[312486697,1705923045700,-1866.18300026,0.000362,3]
[312486698,1705923046356,-0.33110935,0.000362,3]
[312486699,1705923046956,-1085.65649884,0.000362,3]
[312486700,1705923046979,-12698.04333542,0.000362,3]
[312486701,1705923046991,-8608.38956668,0.000362,3]
[312486702,1705923047001,-160.23,0.00036626,2]
[312486703,1705923047011,-565.8,0.00036649,2]
[312486704,1705923047021,-399.31,0.00036872,2]
[312486705,1705923047031,-177.06,0.00036975,2]
[312486706,1705923047041,-669.01240215,0.00037,7]
[312486707,1705923047051,-160.23,0.00037203,2]
[312486708,1705923047061,-150.0,0.00037335,4]
[312486709,1705923047071,-328.383179,0.00037336,30]
[312486710,1705923047081,-1778.36,0.00037452,5]
[312486711,1705923047091,-150.0,0.00037619,2]
[312486712,1705923047100,-734.59618659,0.000377,14]
[312486713,1705923047110,-1744.0,0.000377,7]
[312486714,1705923047120,-700.0,0.000377,13]
[312486715,1705923047130,-150.0,0.0003773,2]
[312486716,1705923047139,-150.0,0.00037751,2]
[312486717,1705923047149,-160.23,0.0003778,2]
[312486718,1705923047158,-125907.20320049,0.000378,2]
[312486733,1705924232698,-390.87776714,0.00027395,2]
[312486734,1705924232726,-2801.99429503,0.00027395,2]
[312486735,1705924232734,-941.78794294,0.00027396,2]
[312486736,1705924232744,-183.16,0.00027397,2]
[312486737,1705924232753,-153.16,0.00027397,2]
[312486738,1705924232762,-155.0,0.0003,2]
[312486739,1705924232770,-183.16,0.0003105,2]
[312486740,1705924232780,-205.0,0.00031373,2]
[312486741,1705924232789,-159.88850779,0.00032304,4]
[312486742,1705924232798,-383.87,0.00032305,2]
[312486743,1705924232808,-250.0,0.00033424,2]
[312486744,1705924232817,-150.0,0.00033452,2]
[312486745,1705924232827,-163.0174036,0.00033477,2]
[312486746,1705924232836,-156.06,0.00033484,15]
[312486747,1705924232845,-150.99,0.00033577,30]
[312486748,1705924232855,-619.42,0.00033577,2]
[312486749,1705924232864,-208.2,0.00033579,2]
[312486778,1705924233122,-173.74,0.00033682,2]
[312486780,1705924233136,-250.0,0.00033701,2]
[312486782,1705924233146,-667.68283489,0.00033721,2]
[312486785,1705924233158,-858.16390953,0.00033721,2]
[312486787,1705924233169,-474.15325558,0.00033721,2]
[312486789,1705924233178,-1000.0,0.00034,4]
[312486791,1705924233187,-500.0,0.00034,2]
[312486793,1705924233198,-816.93,0.00034023,2]
[312486795,1705924233207,-163.01740353,0.00034095,2]
[312486797,1705924233216,-11055.87962271,0.000345,2]
[312486799,1705924233227,-538.67575497,0.000345,2]
[312486806,1705924233280,-4942.58298151,0.000345,2]
[312486808,1705924233290,-2460.4,0.000345,2]
[312486810,1705924233299,-499.99,0.000345,2]
[312486812,1705924233309,-3242.03,0.000345,2]
[312486814,1705924233318,-383.87,0.00034569,2]
[312486816,1705924233327,-568.98,0.00034641,2]
[312486818,1705924233336,-183.16,0.00034703,2]
[312486820,1705924233346,-163.01740353,0.00034712,2]
[312486822,1705924233355,-11819.21105031,0.00034981,10]
[312486824,1705924233366,-2742.301515,0.00034981,10]
[312486832,1705924233424,-2961.70000088,0.00034981,10]
[312486834,1705924233436,-7213.48089981,0.00034981,10]
[312486836,1705924233447,-40622.71745647,0.00034981,10]
[312486838,1705924233457,-73700.4473255,0.00034981,10]
[312486840,1705924233469,-319.91350895,0.00034981,10]
[312486844,1705924233492,-265.25084561,0.00034981,10]
[312486846,1705924233503,-568.82257769,0.00034981,10]
[312486848,1705924233514,-1759.27377764,0.00034981,10]
[312486851,1705924233525,-2168.57762338,0.00034981,10]
[312486855,1705924233551,-2617.74080649,0.00034981,10]
[312486858,1705924233574,-623.01553901,0.00034981,10]
[312486938,1705924237692,-781.88578096,0.00034981,10]
[312486939,1705924237704,-769.22313,0.00034981,10]
[312486940,1705924237715,-333.27908567,0.00034981,10]
[312486941,1705924237857,-6000.00036963,0.00034981,10]
[312486942,1705924237869,-10736.21554177,0.00034981,10]
[312486943,1705924237880,-8612.43843895,0.00034981,10]
[312486944,1705924237891,-541.98537446,0.00034981,10]
[312486945,1705924237903,-1788.25695,0.00034981,10]
[312486946,1705924237914,-729.82228752,0.00034981,10]
[312486947,1705924238013,-634.70589914,0.00034981,10]
[312486948,1705924238028,-19257.55958767,0.00034981,10]
[312486949,1705924238040,-1018.91138684,0.00034981,10]
[312486950,1705924238052,-1413.26324065,0.00034981,10]
[312486951,1705924238062,-5020.67753495,0.00035,4]
[312486952,1705924238072,-209.2322035,0.00035017,6]
[312486953,1705924238082,-163.984815,0.00035017,6]
[312486954,1705924238091,-168.52598312,0.00035017,6]
[312486955,1705924238101,-177.72825195,0.00035017,6]
[312486956,1705924238112,-1000.0,0.00035017,7]
[312486957,1705924238121,-816.93,0.00035282,2]
[312486959,1705924238130,-163.01740353,0.0003533,2]
[312486961,1705924238139,-328.0,0.00035827,2]
[312486963,1705924238148,-1674.64106912,0.00035907,4]
[312486965,1705924238158,-163.01740353,0.00035947,2]
[312486966,1705924238167,-1834.83,0.00036024,5]
[312486967,1705924238177,-205.0,0.00036145,11]
[312486968,1705924238186,-1872.84734254,0.000362,3]
[312486969,1705924238198,-5777.00175771,0.000362,3]
[312486970,1705924238208,-9603.7401185,0.000362,3]
[312486971,1705924238220,-558.2024546,0.000362,3]
[312486972,1705924238237,-1401.99359684,0.000362,3]
[312486973,1705924238248,-394.73047548,0.000362,3]
[312486974,1705924238261,-976.559396,0.000362,3]
[312486975,1705924238280,-587.61236239,0.000362,3]
[312486976,1705924238292,-268.58306914,0.000362,3]
[312486977,1705924238352,-9672.7294268,0.000362,3]
[312486978,1705924238362,-1781.05,0.00036236,5]
[312486979,1705924238371,-1836.7,0.00036483,5]
[312486980,1705924238380,-816.93,0.00036541,2]
[312486981,1705924238390,-163.01740353,0.00036565,2]
[312486982,1705924238399,-471.5,0.00036739,2]
[312486983,1705924238408,-1810.66,0.00036785,5]
[312486984,1705924238418,-383.87,0.00036833,2]
[312486985,1705924238427,-200.0,0.000369,5]
[312486986,1705924238436,-150.0,0.000369,2]
[312486987,1705924238446,-176.43,0.000369,2]
[312486988,1705924238455,-1805.04,0.0003699,5]
[312486989,1705924238464,-669.01240215,0.00037,7]
[312486990,1705924238473,-300.0,0.00037,13]
[312486991,1705924238483,-163.01740353,0.00037182,2]
[312486992,1705924238492,-4568.12145839,0.00037202,10]
[312486993,1705924238503,-1838.99,0.00037212,5]
[312486994,1705924238512,-328.383179,0.00037342,30]
[312486995,1705924238521,-1403.09141315,0.00037448,14]
[312486996,1705924238531,-200.0,0.00037448,5]
[312486997,1705924238540,-350.88,0.00037448,2]
[312486998,1705924238549,-1046.0122,0.00037498,10]
[312486999,1705924238558,-1100.0,0.000375,13]
[312487000,1705924238567,-1560.0,0.000375,7]
[312487001,1705924238576,-1776.77,0.00037539,5]
[312487002,1705924238585,-4568.12145839,0.0003759,10]
[312487003,1705924238594,-210.35018475,0.0003759,9]
[312487004,1705924238604,-7945.54,0.000376,3]
[312487005,1705924238613,-2200.0,0.000376,13]
[312487006,1705924238622,-151.97,0.00037677,2]
[312487007,1705924238631,-4568.12145839,0.0003768,10]
[312487008,1705924238641,-13799.48987775,0.00037687,10]
[312487009,1705924238653,-22745.48178935,0.00037687,10]
[312487010,1705924238662,-3972.76,0.0003769,3]
[312487011,1705924238671,-634.4983,0.00037697,2]
[312487012,1705924238680,-40923.09156578,0.00037697,2]
[312487013,1705924238695,-358.33485164,0.00037697,2]
[312487014,1705924238711,-5257.05587004,0.00037697,2]
[312487015,1705924238781,-317.13206227,0.00037697,2]
[312487016,1705924238792,-3740.42332155,0.00037697,2]
[312487017,1705924238803,-1072.5504,0.00037697,2]
[312487023,1705924240175,-1062.73661376,0.00037697,2]
[312487024,1705924240188,-298.33106,0.00037697,2]
[312487025,1705924240200,-904.79162264,0.00037697,2]
[312487026,1705924240211,-589.55763454,0.00037697,2]
[312487027,1705924240223,-15874.20559082,0.00037697,2]
[312487028,1705924240901,-359.60538072,0.00037697,2]
[312487029,1705924240912,-633.31635902,0.00037697,2]
[312487030,1705924240923,-720.83166211,0.00037697,2]
[312487031,1705924240934,-705.05630511,0.00037697,2]
[312487032,1705924240943,-120.22369489,0.000377,7]
[312487033,1705924240954,-131.53198095,0.000377,7]
[312487034,1705924240963,-624.59901905,0.000377,13]
[312487035,1705924241012,-2675.40098095,0.000377,13]
[312487036,1705924241022,-79.8176982,0.000377,7]
[312487037,1705924241038,-270.17983787,0.000377,7]
[312487038,1705924241049,-650.00246393,0.000377,7]
[312487039,1705924241059,-201.18453592,0.0003771,3]
[312487040,1705924241070,-1700.33388006,0.0003771,3]
[312487041,1705924241082,-464.89426775,0.0003771,3]
[312487042,1705924241105,-310.077,0.0003771,3]
[312487043,1705924241173,-637.37330056,0.0003771,3]
[312487045,1705924241686,-658.89701571,0.0003771,3]
[312487046,1705924241696,-150.0,0.00037752,2]
[312487048,1705924241706,-4568.12145839,0.00037777,10]
[312487049,1705924241716,-48.72173388,0.00037786,2]
[312487064,1705924243459,-4998.401,0.00035017,2]
[312487065,1705924243472,-4886.54651404,0.00035017,2]
[312487066,1705924243483,-10643.7297931,0.00035017,2]
[312487067,1705924243499,-10481.68,0.00035017,2]
[312487068,1705924243512,-10493.5028,0.00035017,2]
[312487069,1705924243524,-1927.76048983,0.00035017,2]
[312487076,1705924245854,-6568.37940303,0.00035017,2]
[312487077,1705924245865,-1000.0,0.00036198,4]
[312487078,1705924245874,-103.24826612,0.00037786,2]
[312487079,1705924245884,-1902.19640961,0.00037787,10]
[312487080,1705924245896,-48347.13963269,0.00037787,10]
[312487081,1705924245906,-150.0,0.00037788,2]
[312487082,1705924245915,-9407.72308515,0.0003779,10]
[312487083,1705924245997,-3797.272876,0.0003779,10]
[312487084,1705924246009,-584.99795,0.0003779,10]
[312487085,1705924246112,-464.46486833,0.0003779,10]
[312487086,1705924246295,-8069.72008989,0.00037786,2]
[312487087,1705924246306,-14385.28549646,0.0003779,10]
[312487089,1705924365852,5018.10170097,0.00019728,2]
[312487098,1705924431957,3550.0,0.0002,2]
[312487125,1705925434335,-780.78081971,0.00022779,2]
[312487132,1705925434398,-270.39570256,0.00022779,2]
[312487134,1705925434408,-270.25016331,0.0002278,2]
[312487136,1705925434417,-18.04613413,0.00022781,2]
[312487141,1705925434457,-923.74180881,0.00022781,2]
[312487143,1705925434467,-435.2659414,0.000228,2]
[312487145,1705925434478,-230.26204204,0.00022811,2]
[312487147,1705925434487,-2334.87154507,0.00022832,2]
[312487149,1705925434499,-34526.33283299,0.00022832,2]
[312487150,1705925434518,-13460.20583927,0.00022832,2]
[312487151,1705925434528,-8797.87210773,0.00022832,2]
[312487152,1705925434538,-173.15439744,0.00022899,2]
[312487153,1705925434548,-1973.40969312,0.00022999,2]
[312487154,1705925434557,-350.0,0.00025,3]
[312487155,1705925434567,-2504.89,0.00025,2]
[312487156,1705925434576,-545.06,0.00025,2]
[312487157,1705925434585,-624.78,0.00025,2]
[312487158,1705925434595,-206.0,0.00027373,2]
[312487159,1705925434605,-163.42,0.00027397,2]
[312487160,1705925434614,-173.15439743,0.00027866,2]
[312487161,1705925434624,-155.0,0.0003,2]
[312487162,1705925434633,-361.2,0.00030572,2]
[312487164,1705925434643,-1897.35475089,0.00031,10]
[312487166,1705925434652,-163.42,0.0003105,2]
[312487168,1705925434662,-195.24192497,0.00032,14]
[312487170,1705925434671,-1182.7259739,0.00032,2]
[312487172,1705925434681,-200.0,0.00032265,2]
[312487174,1705925434690,-867.06,0.00032476,2]
[312487176,1705925434701,-305.02,0.00032676,2]
[312487178,1705925434710,-2328.07,0.00032766,2]
[312487180,1705925434719,-173.15439743,0.00032833,2]
[312487181,1705925434729,-361.2,0.00032836,2]
[312487183,1705925434738,-220.83,0.00033153,2]
[312487185,1705925434748,-156.06,0.00033173,15]
[312487187,1705925434758,-1310.36,0.00033267,2]
[312487189,1705925434768,-643.88,0.00033287,2]
[312487191,1705925434777,-1615.96,0.00033315,2]
[312487193,1705925434787,-462.4,0.00033396,2]
[312487195,1705925434797,-160.19,0.00033634,2]
[312487196,1705925434806,-206.0,0.00033899,13]
[312487197,1705925434815,-500.0,0.00034,2]
[312487198,1705925434824,-1000.0,0.00034,4]
[312487199,1705925434834,-250.0,0.00034258,2]
[312487200,1705925434843,-160.19,0.00034511,2]
[312487201,1705925434853,-643.88,0.00034519,2]
[312487202,1705925434862,-163.42,0.00034703,2]
[312487203,1705925434871,-220.83,0.00034797,2]
[312487204,1705925434880,-450.0,0.00035,11]
[312487205,1705925434890,-5020.67753495,0.00035,4]
[312487206,1705925434900,-1485.26604689,0.00035,2]
[312487207,1705925434910,-1796.05,0.00035017,5]
[312487208,1705925434919,-5857.83560537,0.00035017,6]
[312487209,1705925434929,-2636.02602241,0.00035017,6]
[312487210,1705925434938,-377.84855522,0.00035017,6]
[312487211,1705925434947,-293.89242776,0.00035017,6]
[312487212,1705925434959,-151.67338481,0.00035017,6]
[312487213,1705925434968,-172.3066444,0.0003506,6]
[312487214,1705925434978,-361.2,0.000351,2]
[312487215,1705925434987,-168.16,0.0003522,2]
[312487216,1705925434997,-160.19,0.00035387,2]
[312487217,1705925435006,-643.88,0.00035751,2]
[312487218,1705925435015,-300.0,0.00036,12]
[312487219,1705925435025,-33123.0,0.000362,3]
[312487220,1705925435034,-1809.39328916,0.00036273,2]
[312487221,1705925435044,-220.83,0.0003644,2]
[312487222,1705925435053,-121373.0,0.00036774,2]
[312487223,1705925435065,-154.20031007,0.000368,2]
[312487224,1705925435074,-154.20031,0.00036859,2]
[312487225,1705925435084,-200.0,0.000369,5]
[312487226,1705925435094,-4289.29392376,0.000369,8]
[312487227,1705925435103,-154.20031,0.00036918,2]
[312487228,1705925435113,-154.20031,0.00036976,2]
[312487229,1705925435123,-643.88,0.00036982,2]
[312487230,1705925435133,-1286.20526935,0.00036997,2]
[312487231,1705925435142,-100000.0,0.00037,7]
[312487232,1705925435152,-300.0,0.00037,13]
[312487233,1705925435163,-669.01240215,0.00037,7]
[312487234,1705925435172,-154.20031,0.00037035,2]
[312487235,1705925435182,-154.20031,0.00037094,2]
[312487236,1705925435191,-206.0,0.0003711,2]
[312487237,1705925435202,-210.35018475,0.00037115,9]
[312487238,1705925435212,-154.20031,0.00037153,2]
[312487239,1705925435221,-1027.0,0.000372,7]
[312487240,1705925435231,-151.97,0.00037205,2]
[312487241,1705925435240,-154.20031,0.00037212,2]
[312487242,1705925435249,-42028.88066772,0.00037215,2]
[312487243,1705925435263,-102653.46197496,0.00037215,2]
[312487244,1705925435283,-7354.64342809,0.00037215,2]
[312487254,1705925437899,-1001.14433786,0.00037215,2]
[312487255,1705925438168,-268.58306914,0.00037215,2]
[312487256,1705925438180,-315.73890016,0.00037215,2]
[312487257,1705925438192,-539.19362387,0.00037215,2]
[312487258,1705925438203,-362.96579285,0.00037215,2]
[312487295,1705925440464,-300.0,0.00037215,2]
[312487296,1705925440577,-50096.84169359,0.00037215,2]
[312487357,1705925443244,-1044.16324353,0.00037215,2]
[312487359,1705925443259,-11995.028,0.00037215,2]
[312487360,1705925443284,-27039.35526823,0.00037215,2]
[312487362,1705925443294,-170.1623,0.00037215,2]
[312487364,1705925443303,-5685.8547,0.00037215,2]
[312487366,1705925443313,-154.20031,0.00037271,2]
[312487368,1705925443322,-154.20031,0.00037329,2]
[312487370,1705925443331,-3179.46171204,0.00037331,10]
[312487372,1705925443341,-151.97,0.00037341,2]
[312487374,1705925443350,-5504.64979972,0.00037351,30]
[312487463,1705925446108,-1373.37952506,0.00037351,30]
[312487464,1705925446118,-2718.19411495,0.00037351,30]
[312487465,1705925446131,-437.28383798,0.00037351,30]
[312487466,1705925446333,-2300.0,0.00037351,30]
[312487468,1705926303142,6215.67577493,0.00021778,2]
[312487486,1705926633156,-941.78794294,0.00024372,2]
[312487487,1705926633169,-7.06809506,0.00024373,2]
[312487488,1705926633228,-198.93190494,0.00024373,2]
[312487489,1705926633240,-350.0,0.00025,3]
[312487490,1705926633252,-400.0,0.00027,3]
[312487491,1705926633264,-150.0,0.00027391,2]
[312487492,1705926633277,-2161.41509732,0.00027392,2]
[312487493,1705926633291,-2527.41322979,0.00027392,2]
[312487494,1705926633310,-3722.27159976,0.00027392,2]
[312487495,1705926633324,-15953.15264034,0.00027392,2]
[312487496,1705926633333,-1000.0,0.00027394,2]
[312487497,1705926633342,-159.97,0.00027397,2]
[312487498,1705926633355,-173.15439743,0.000299,2]
[312487499,1705926633365,-155.0,0.0003,2]
[312487500,1705926633374,-159.97,0.0003105,2]
[312487501,1705926633384,-1000.0,0.00032596,2]
[312487502,1705926633393,-329.3,0.00033213,2]
[312487503,1705926633403,-206.0,0.0003328,16]
[312487504,1705926633413,-1000.0,0.00034,4]
[312487505,1705926633422,-500.0,0.00034,2]
[312487506,1705926633431,-3504.11513327,0.00034444,13]
[312487507,1705926633443,-314.19872509,0.00034444,13]
[312487508,1705926633458,-898.38723224,0.00034444,13]
[312487515,1705926633882,-896.46176977,0.00034444,13]
[312487516,1705926633937,-8559.899282,0.00034444,13]
[312487517,1705926633959,-514.09738186,0.00034444,13]
[312487518,1705926633976,-2635.69609953,0.00034444,13]
[312487519,1705926633989,-1712.57262717,0.00034444,13]
[312487520,1705926634000,-542.52416096,0.00034444,13]
[312487521,1705926634013,-965.39069473,0.00034444,13]
[312487522,1705926634024,-1125.25406603,0.00034444,13]
[312487543,1705926638015,-3850.0,0.00027391,2]
[312487544,1705926638027,-871.56871908,0.00027391,2]
[312487545,1705926638039,-744.91964182,0.00027391,2]
[312487546,1705926638053,-4079.7,0.00027391,2]
[312487547,1705926638177,-888.53808,0.00027391,2]
[312487548,1705926638201,-2174.97964975,0.00027391,2]
[312487549,1705926638213,-440.7,0.00027391,2]
[312487550,1705926638225,-394.14575585,0.00027391,2]
[312487551,1705926638308,-7139.49937052,0.00027391,2]
[312487605,1705926643369,-292.55581077,0.00027391,2]
[312487607,1705926643381,-1579.02515409,0.00027391,2]
[312487614,1705926643436,-500.0,0.00027391,2]
[312487616,1705926643447,-1377.50795945,0.00027391,2]
[312487618,1705926643458,-446.53762245,0.00027391,2]
[312487621,1705926643469,-313.10995,0.00027391,2]
[312487623,1705926643482,-306.08875488,0.00027391,2]
[312487625,1705926643493,-21359.33079126,0.00027391,2]
[312487628,1705926643513,-3241.79274008,0.00027391,2]
[312487630,1705926643523,-239.83217067,0.00034,14]
[312487632,1705926643532,-500.0,0.00034443,2]
[312487633,1705926643542,-2043.18498334,0.00034444,13]
[312487635,1705926643553,-656.99056597,0.00034444,13]
[312487637,1705926643565,-265.1286,0.00034444,13]
[312487638,1705926643576,-251.96241439,0.00034444,13]
[312487639,1705926643588,-15944.94833575,0.00034444,13]
[312487640,1705926643597,-156.06,0.00034593,15]
[312487641,1705926643606,-159.97,0.00034703,2]
[312487642,1705926643616,-604.26,0.0003478,20]
[312487643,1705926643626,-167.98,0.00034923,2]
[312487644,1705926643636,-250.0,0.00034955,2]
[312487645,1705926643645,-230.86,0.00034986,2]
[312487646,1705926643654,-150.82,0.00034998,2]
[312487647,1705926643664,-5020.67753495,0.00035,4]
[312487648,1705926643673,-1186.21171009,0.00035056,6]
[312487649,1705926643682,-454.34243535,0.00035056,6]
[312487650,1705926643692,-154.96871426,0.00035056,6]
[312487651,1705926643703,-588.86412597,0.00035056,6]
[312487652,1705926643714,-205.56793702,0.00035056,6]
[312487653,1705926643724,-251.7298428,0.00035056,6]
[312487654,1705926643734,-1000.0,0.00035056,7]
[312487655,1705926643743,-172.3066444,0.00035056,6]
[312487656,1705926643753,-213.33,0.000352,2]
[312487657,1705926643764,-569.92,0.00035333,2]
[312487658,1705926643776,-150.82,0.00035454,2]
[312487659,1705926643785,-329.3,0.00035477,2]
[312487660,1705926643794,-154.20031,0.0003581,2]
[312487661,1705926643804,-1810.9,0.0003586,5]
[312487662,1705926643814,-205.0,0.0003589,2]
[312487663,1705926643823,-26.77064636,0.0003589,2]
[312487664,1705926643835,-177.22935364,0.0003589,2]
[312487665,1705926643844,-362.57044626,0.000359,3]
[312487666,1705926643857,-2788.42955374,0.000359,3]
[312487667,1705926643866,-8556.58261996,0.000359,3]
[312487668,1705926643877,-440.41377552,0.000359,3]
[312487669,1705926643888,-264.96451937,0.000359,3]
[312487670,1705926643899,-1567.6451953,0.000359,3]
[312487671,1705926643911,-13063.05584999,0.000359,3]
[312487672,1705926643922,-3444.28202626,0.000359,3]
[312487673,1705926644120,-2782.0560136,0.000359,3]
[312487674,1705926644130,-150.82,0.0003591,2]
[312487675,1705926644140,-154.20031,0.00036097,2]
[312487676,1705926644149,-150.82,0.00036366,2]
[312487677,1705926644158,-1822.48,0.00036383,5]
[312487678,1705926644167,-154.20031,0.00036385,2]
[312487679,1705926644176,-205.0,0.0003647,2]
[312487680,1705926644186,-204.0,0.0003647,2]
[312487681,1705926644195,-213.33,0.00036502,2]
[312487682,1705926644205,-167.98,0.00036566,2]
[312487683,1705926644214,-154.20031,0.00036672,2]
[312487684,1705926644225,-161.63,0.00036725,2]
[312487685,1705926644235,-150.82,0.00036822,2]
[312487686,1705926644245,-338.53595614,0.000369,5]
[312487687,1705926644254,-154.20031,0.0003696,2]
[312487688,1705926644265,-8027.10733958,0.00036974,4]
[312487689,1705926644275,-5293.18079196,0.0003698,2]
[312487690,1705926644317,-493.37803276,0.0003698,2]
[312487691,1705926644329,-712.67757433,0.0003698,2]
[312487692,1705926644348,-572.00348816,0.0003698,2]
[312487694,1705926644679,-1081.6614503,0.0003698,2]
[312487695,1705926644689,-205.0,0.0003705,2]
[312487696,1705926644698,-204.0,0.0003705,2]
[312487697,1705926644708,-163.87627281,0.0003705,14]
[312487698,1705926644718,-1326.824,0.00037147,2]
[312487699,1705926644732,-2924.44711254,0.00037147,2]
[312487707,1705926646078,-12824.91065693,0.00037147,2]
[312487708,1705926646202,-6241.44283053,0.00037147,2]
[312487709,1705926646211,-1250.96,0.00037247,2]
[312487710,1705926646220,-154.20031,0.00037247,2]
[312487711,1705926646230,-723.0214,0.00037248,2]
[312487712,1705926646239,-1789.72825134,0.0003725,8]
[312487713,1705926646251,-1247.199999,0.0003725,8]
[312487714,1705926646568,-1096.88648613,0.0003725,8]
[312487715,1705926646577,-1812.73,0.00037251,5]
[312487716,1705926646586,-1082.18219008,0.00037251,5]
[312487717,1705926646630,-703.68780992,0.00037251,5]
[312487718,1705926646640,-1295.80723238,0.00037251,5]
[312487719,1705926646721,-502.17276762,0.00037251,5]
[312487720,1705926646731,-210.35018475,0.00037278,9]
[312487721,1705926646742,-173.75968148,0.00037311,2]
[312487722,1705926646751,-344.20568,0.00037341,2]
[312487723,1705926646760,-534.88418822,0.00037347,2]
[312487724,1705926646792,-20769.25847428,0.00037347,2]
[312487725,1705926646803,-83218.65058433,0.00037347,2]
[312487726,1705926646812,-651.41875051,0.00037348,4]
[312487727,1705926646822,-1045.79945445,0.0003735,4]
[312487728,1705926646831,-1057.97997729,0.0003735,4]
[312487729,1705926646840,-1255.79384089,0.0003735,4]
[312487730,1705926646850,-1805.56,0.00037351,5]
[312487731,1705926646861,-1807.13,0.00037351,5]
[312487732,1705926646871,-1793.6,0.00037351,5]
[312487733,1705926646882,-1791.64,0.00037351,5]
[312487734,1705926646893,-155.0,0.00037351,4]
[312487735,1705926646903,-200.0,0.00037351,2]
[312487736,1705926646913,-1970.74374687,0.00037351,3]
[312487737,1705926646922,-838.43476686,0.00037351,2]
[312487738,1705926646932,-684.17434382,0.00037351,4]
[312487739,1705926646942,-151.0,0.00037357,7]
[312487740,1705926646951,-151.98,0.00037368,2]
[312487741,1705926646961,-32184.04302974,0.00037378,30]
[312487742,1705926646973,-654.124,0.00037378,30]
[312487743,1705926903013,5041.12477025,0.00021779,2]
[312487744,1705926921747,1897.75273507,0.00021779,2]
[312487745,1705927154736,-3000.0,0.00023007,2]
[312487746,1705927164173,-941.0,0.00023008,2]
[312487747,1705927182380,-360.39878748,0.00023011,2]
[312487748,1705927182399,-1.60121252,0.00026819,2]
[312487749,1705927611083,-469.19228122,0.00026818,2]
[312487750,1705927611103,-624.03501934,0.00026819,2]
[312487751,1705927611123,-200.0,0.00026819,2]
[312487752,1705927611143,-155.0,0.00026819,2]
[312487753,1705927611163,-509.22119019,0.00026819,2]
[312487754,1705927611183,-558.28505826,0.00026819,2]
[312487755,1705927611202,-150.0,0.00027096,2]
[312487756,1705927611223,-155.31624059,0.00027121,2]
[312487757,1705927611243,-338.43232499,0.00027396,2]
[312487765,1705927832238,-200.0,0.00026819,2]
[312487766,1705927832248,-65.233,0.00026819,2]
[312487767,1705927832261,-109.5951608,0.00026819,2]
[312487768,1705927832270,-333.61004389,0.00026819,2]
[312487769,1705927832279,-624.03501934,0.00027396,2]
[312487770,1705927832293,-3430.33989207,0.00027396,2]
[312487771,1705927832305,-513.87993574,0.00027396,2]
[312487772,1705927832316,-280.56667432,0.00027396,2]
[312487773,1705927832328,-33526.8652601,0.00027396,2]
[312487774,1705927832337,-349.03927943,0.00027396,2]
[312487775,1705927832347,-165.72,0.00027397,2]
[312487776,1705927832356,-159.45,0.00027397,2]
[312487777,1705927832365,-160.25,0.00027397,2]
[312487778,1705927832374,-3309.6086308,0.00027825,2]
[312487779,1705927832383,-13519.3943026,0.00027844,2]
[312487780,1705927832393,-556.58,0.00027864,2]
[312487781,1705927832403,-534.36055907,0.00028034,2]
[312487782,1705927832413,-159.45,0.00028493,2]
[312487783,1705927832423,-9374.08062311,0.00028581,2]
[312487784,1705927832446,-6035.59806615,0.00028581,2]
[312487785,1705927832762,-384.86813329,0.00028581,2]
[312487786,1705927832774,-303.77486671,0.00028581,2]
[312487787,1705927832785,-700.0,0.00028581,2]
[312487788,1705927832820,-413.62781872,0.00028581,2]
[312487817,1705927838475,-940.8980166,0.00028581,2]
[312487818,1705927838537,-5747.15247542,0.00028581,2]
[312487819,1705927838547,-2000.0,0.00028581,2]
[312487820,1705927838557,-2500.0,0.00028614,3]
[312487821,1705927838566,-250.0,0.00028651,2]
[312487822,1705927838575,-878.97,0.00028652,2]
[312487823,1705927838585,-408.19,0.00028677,2]